[Event "Open NK Rapid 2025"]
[Site "Helmond, Netherlands"]
[Date "2025.05.03"]
[Round "4.3"]
[White "Peng, Li Min"]
[Black "Van Roon, Sjoerd"]
[Result "1-0"]
[TimeControl "15+5"]
[WhiteFideId "14112620"]
[BlackFideId "1051075"]
[WhiteElo "2510"]
[BlackElo "2179"]

1. Nf3 {[%clk 00:15:08]} {[%emt 00:00:02]} d5 {[%clk 00:15:10]} 2. e3 {[%clk
00:15:11]} {[%emt 00:00:01]} Nf6 {[%clk 00:15:09]} {[%emt 00:00:07]} 3. c4
{[%clk 00:15:12]} {[%emt 00:00:03]} e6 {[%clk 00:15:06]} {[%emt 00:00:09]} 4.
Nc3 {[%clk 00:15:12]} {[%emt 00:00:04]} c6 {[%clk 00:14:54]} {[%emt 00:00:18]}
5. b3 {[%clk 00:15:04]} {[%emt 00:00:13]} Bd6 {[%clk 00:14:56]} {[%emt
00:00:03]} 6. Bb2 {[%clk 00:15:04]} {[%emt 00:00:04]} Nbd7 {[%clk 00:14:59]}
{[%emt 00:00:02]} 7. Qc2 {[%clk 00:15:05]} {[%emt 00:00:04]} O-O {[%clk
00:14:59]} {[%emt 00:00:05]} 8. Rg1 {[%clk 00:15:05]} {[%emt 00:00:06]} e5
{[%clk 00:13:40]} {[%emt 00:01:25]} 9. cxd5 {[%clk 00:15:04]} {[%emt 00:00:05]}
cxd5 {[%clk 00:13:43]} {[%emt 00:00:02]} 10. Nb5 {[%clk 00:15:07]} {[%emt
00:00:01]} Qe7 {[%clk 00:13:43]} {[%emt 00:00:05]} 11. Rc1 {[%clk 00:12:37]}
{[%emt 00:02:36]} Re8 {[%clk 00:09:22]} {[%emt 00:04:26]} 12. Nxd6 {[%clk
00:11:03]} {[%emt 00:01:39]} Qxd6 {[%clk 00:09:25]} {[%emt 00:00:01]} 13. Qc7
{[%clk 00:11:06]} {[%emt 00:00:02]} Qxc7 {[%clk 00:07:34]} {[%emt 00:01:57]} 14.
Rxc7 {[%clk 00:11:09]} {[%emt 00:00:02]} d4 {[%clk 00:07:38]} {[%emt 00:00:01]}
15. Bc4 {[%clk 00:10:45]} {[%emt 00:00:28]} dxe3 {[%clk 00:07:03]} {[%emt
00:00:41]} 16. fxe3 {[%clk 00:10:41]} {[%emt 00:00:08]} h6 {[%clk 00:04:42]}
{[%emt 00:02:26]} 17. g4 {[%clk 00:10:44]} {[%emt 00:00:02]} e4 {[%clk
00:03:37]} {[%emt 00:01:11]} 18. g5 {[%clk 00:10:28]} {[%emt 00:00:21]} exf3
{[%clk 00:01:42]} {[%emt 00:01:59]} 19. gxf6 {[%clk 00:10:30]} {[%emt
00:00:03]} g5 {[%clk 00:01:30]} {[%emt 00:00:17]} 20. h4 {[%clk 00:10:32]}
{[%emt 00:00:04]} Ne5 {[%clk 00:01:31]} {[%emt 00:00:05]} 21. hxg5 {[%clk
00:08:01]} {[%emt 00:02:35]} Nxc4 {[%clk 00:01:17]} {[%emt 00:00:19]} 22. g6
{[%clk 00:07:41]} {[%emt 00:00:25]} Rf8 {[%clk 00:00:22]} {[%emt 00:01:00]} 23.
bxc4 {[%clk 00:07:00]} {[%emt 00:00:46]} Be6 {[%clk 00:00:17]} {[%emt
00:00:10]} 24. Ba3 {[%clk 00:06:51]} {[%emt 00:00:14]} Rfd8 {[%clk 00:00:08]}
{[%emt 00:00:15]} 25. gxf7+ {[%clk 00:06:48]} {[%emt 00:00:07]} Kh7 {[%clk
00:00:10]} {[%emt 00:00:03]} 26. f8=Q+ {[%clk 00:06:49]} {[%emt 00:00:04]} 1-0

[Event "Open NK Rapid 2025"]
[Site "Helmond, Netherlands"]
[Date "2025.05.03"]
[Round "4.4"]
[White "Margaryan, Artur"]
[Black "Beerdsen, Thomas"]
[Result "0-1"]
[TimeControl "15+5"]
[WhiteFideId "13304348"]
[BlackFideId "1030108"]
[WhiteElo "2100"]
[BlackElo "2485"]

1. d4 {[%clk 00:15:08]} {[%emt 00:00:02]} d5 {[%clk 00:15:09]} {[%emt
00:00:02]} 2. c4 {[%clk 00:15:12]} {[%emt 00:00:01]} Nc6 {[%clk 00:15:12]}
{[%emt 00:00:01]} 3. cxd5 {[%clk 00:15:14]} {[%emt 00:00:03]} Qxd5 {[%clk
00:15:15]} {[%emt 00:00:02]} 4. e3 {[%clk 00:15:18]} {[%emt 00:00:01]} e5
{[%clk 00:15:18]} {[%emt 00:00:02]} 5. Nc3 {[%clk 00:15:21]} {[%emt 00:00:02]}
Bb4 {[%clk 00:15:21]} {[%emt 00:00:01]} 6. Bd2 {[%clk 00:15:24]} {[%emt
00:00:03]} Bxc3 {[%clk 00:15:21]} {[%emt 00:00:05]} 7. Bxc3 {[%clk 00:15:27]}
{[%emt 00:00:02]} exd4 {[%clk 00:15:20]} {[%emt 00:00:05]} 8. Ne2 {[%clk
00:15:30]} {[%emt 00:00:02]} Nge7 {[%clk 00:15:16]} {[%emt 00:00:10]} 9. Nxd4
{[%clk 00:15:31]} {[%emt 00:00:04]} O-O {[%clk 00:15:15]} {[%emt 00:00:06]} 10.
Be2 {[%clk 00:15:00]} {[%emt 00:00:36]} Qxg2 {[%clk 00:14:45]} {[%emt
00:00:35]} 11. Bf3 {[%clk 00:15:03]} {[%emt 00:00:02]} Qg6 {[%clk 00:13:46]}
{[%emt 00:01:04]} 12. Nxc6 {[%clk 00:14:49]} {[%emt 00:00:19]} Nxc6 {[%clk
00:13:44]} {[%emt 00:00:07]} 13. Bxc6 {[%clk 00:13:51]} {[%emt 00:01:04]} bxc6
{[%clk 00:13:00]} {[%emt 00:00:48]} 14. Qd4 {[%clk 00:13:51]} {[%emt 00:00:05]}
c5 {[%clk 00:12:40]} {[%emt 00:00:25]} 15. Qxc5 {[%clk 00:11:06]} {[%emt
00:02:50]} Bb7 {[%clk 00:12:39]} {[%emt 00:00:06]} 16. Rf1 {[%clk 00:07:46]}
{[%emt 00:03:26]} Ba6 {[%clk 00:12:16]} {[%emt 00:00:27]} 17. O-O-O {[%clk
00:07:33]} {[%emt 00:00:18]} Bxf1 {[%clk 00:12:19]} {[%emt 00:00:01]} 18. Rxf1
{[%clk 00:07:38]} {[%emt 00:00:02]} Rfd8 {[%clk 00:12:22]} 19. h4 {[%clk
00:07:15]} {[%emt 00:00:28]} h5 {[%clk 00:11:51]} {[%emt 00:00:36]} 20. f4
{[%clk 00:06:59]} {[%emt 00:00:21]} Qg2 {[%clk 00:11:28]} {[%emt 00:00:27]} 21.
Re1 {[%clk 00:06:43]} {[%emt 00:00:21]} Rd5 {[%clk 00:11:31]} {[%emt 00:00:02]}
22. Qxc7 {[%clk 00:06:13]} {[%emt 00:00:36]} Rad8 {[%clk 00:11:32]} {[%emt
00:00:04]} 23. e4 {[%clk 00:05:28]} {[%emt 00:00:50]} Rd2 {[%clk 00:09:12]}
{[%emt 00:02:25]} 24. Qc5 {[%clk 00:03:10]} {[%emt 00:02:23]} Rxb2 {[%clk
00:08:57]} {[%emt 00:00:20]} 25. Bxb2 {[%clk 00:01:59]} {[%emt 00:01:17]} Qd2+
{[%clk 00:09:00]} 26. Kb1 {[%clk 00:02:00]} {[%emt 00:00:04]} Qxe1+ {[%clk
00:09:03]} {[%emt 00:00:02]} 27. Bc1 {[%emt 00:00:08]} 0-1

[Event "Open NK Rapid 2025"]
[Site "Helmond, Netherlands"]
[Date "2025.05.03"]
[Round "4.5"]
[White "Dgebuadze, Alexandre"]
[Black "Labruyere, Roger"]
[Result "1-0"]
[TimeControl "15+5"]
[WhiteFideId "203882"]
[BlackFideId "1059505"]
[WhiteElo "2454"]
[BlackElo "2117"]

1. e4 {[%clk 00:15:07]} {[%emt 00:00:02]} c5 {[%clk 00:15:09]} {[%emt
00:00:02]} 2. Nf3 {[%clk 00:15:10]} {[%emt 00:00:02]} d6 {[%clk 00:15:13]}
{[%emt 00:00:01]} 3. d4 {[%emt 00:00:05]} cxd4 {[%clk 00:15:14]} 4. Qxd4 {[%clk
00:15:15]} {[%emt 00:00:02]} Nc6 {[%clk 00:15:17]} {[%emt 00:00:03]} 5. Bb5
{[%clk 00:15:18]} {[%emt 00:00:01]} Bd7 {[%clk 00:15:21]} {[%emt 00:00:02]} 6.
Bxc6 {[%clk 00:15:21]} {[%emt 00:00:02]} bxc6 {[%clk 00:15:24]} {[%emt
00:00:01]} 7. O-O {[%clk 00:15:12]} {[%emt 00:00:14]} e5 {[%clk 00:15:27]}
{[%emt 00:00:02]} 8. Qd3 {[%clk 00:15:15]} {[%emt 00:00:02]} Be7 {[%clk
00:15:30]} {[%emt 00:00:03]} 9. b3 {[%clk 00:14:36]} {[%emt 00:00:44]} Qc7
{[%clk 00:15:04]} {[%emt 00:00:30]} 10. c4 {[%clk 00:14:00]} {[%emt 00:00:41]}
Nf6 {[%clk 00:15:05]} {[%emt 00:00:05]} 11. Ba3 {[%clk 00:14:04]} {[%emt
00:00:01]} O-O {[%clk 00:14:59]} {[%emt 00:00:11]} 12. Nxe5 {[%clk 00:13:55]}
{[%emt 00:00:14]} Rfe8 {[%clk 00:13:55]} {[%emt 00:01:09]} 13. Nxd7 {[%clk
00:13:43]} {[%emt 00:00:17]} Nxd7 {[%clk 00:13:58]} {[%emt 00:00:02]} 14. Nc3
{[%clk 00:13:41]} {[%emt 00:00:07]} Ne5 {[%clk 00:13:58]} {[%emt 00:00:05]} 15.
Qg3 {[%clk 00:13:12]} {[%emt 00:00:32]} Qa5 {[%clk 00:13:50]} {[%emt 00:00:14]}
16. Bb2 {[%clk 00:13:13]} {[%emt 00:00:05]} Rab8 {[%clk 00:13:52]} {[%emt
00:00:03]} 17. Rab1 {[%clk 00:12:55]} {[%emt 00:00:22]} Bf6 {[%clk 00:13:31]}
{[%emt 00:00:26]} 18. Na4 {[%clk 00:12:33]} {[%emt 00:00:27]} h5 {[%clk
00:12:45]} {[%emt 00:00:52]} 19. Bc3 {[%clk 00:11:35]} {[%emt 00:01:02]} Qa6
{[%clk 00:12:24]} {[%emt 00:00:28]} 20. f4 {[%clk 00:10:57]} {[%emt 00:00:42]}
h4 {[%clk 00:12:26]} {[%emt 00:00:02]} 21. Qh3 {[%clk 00:10:57]} {[%emt
00:00:04]} Nxc4 {[%clk 00:11:58]} {[%emt 00:00:34]} 22. Bxf6 {[%clk 00:10:55]}
gxf6 {[%clk 00:11:49]} {[%emt 00:00:22]} 23. Rbd1 {[%clk 00:07:35]} {[%emt
00:03:24]} Nb6 {[%clk 00:09:58]} {[%emt 00:01:57]} 24. Nc3 {[%clk 00:07:13]}
{[%emt 00:00:26]} Qa5 {[%clk 00:09:56]} {[%emt 00:00:08]} 25. Qg4+ {[%clk
00:05:43]} {[%emt 00:01:33]} Kf8 {[%clk 00:09:55]} {[%emt 00:00:07]} 26. Rf3
{[%clk 00:05:29]} {[%emt 00:00:19]} d5 {[%clk 00:09:28]} {[%emt 00:00:33]} 27.
e5 {[%clk 00:05:04]} {[%emt 00:00:30]} Qc5+ {[%clk 00:08:10]} {[%emt 00:01:23]}
28. Kh1 {[%clk 00:05:06]} {[%emt 00:00:02]} fxe5 {[%clk 00:08:14]} {[%emt
00:00:01]} 29. fxe5 {[%clk 00:05:02]} {[%emt 00:00:09]} Qe7 {[%clk 00:08:18]}
{[%emt 00:00:01]} 30. Rdf1 {[%clk 00:04:46]} {[%emt 00:00:22]} Rb7 {[%clk
00:08:09]} {[%emt 00:00:13]} 31. Qh5 {[%clk 00:04:23]} {[%emt 00:00:27]} Kg7
{[%clk 00:04:56]} {[%emt 00:03:20]} 32. Rf5 {[%clk 00:04:23]} {[%emt 00:00:04]}
Qe6 {[%clk 00:04:51]} {[%emt 00:00:10]} 33. Rf6 {[%clk 00:03:51]} {[%emt
00:00:37]} 1-0

[Event "Open NK Rapid 2025"]
[Site "Helmond, Netherlands"]
[Date "2025.05.03"]
[Round "4.6"]
[White "Taams, Lisanne"]
[Black "Schneider, Ilja"]
[Result "0-1"]
[TimeControl "15+5"]
[WhiteFideId "1055852"]
[BlackFideId "4663306"]
[WhiteElo "2078"]
[BlackElo "2438"]

1. Nf3 {[%clk 00:15:07]} {[%emt 00:00:03]} Nf6 {[%clk 00:15:09]} {[%emt
00:00:02]} 2. c4 {[%clk 00:15:10]} {[%emt 00:00:02]} e6 {[%clk 00:15:10]}
{[%emt 00:00:04]} 3. Nc3 {[%clk 00:15:13]} {[%emt 00:00:03]} d5 {[%clk
00:15:13]} {[%emt 00:00:01]} 4. e3 {[%clk 00:15:16]} {[%emt 00:00:02]} Bd6
{[%clk 00:15:09]} {[%emt 00:00:09]} 5. b3 {[%clk 00:15:20]} {[%emt 00:00:02]}
O-O {[%clk 00:15:12]} {[%emt 00:00:01]} 6. Bb2 {[%clk 00:15:23]} {[%emt
00:00:02]} Re8 {[%clk 00:15:16]} {[%emt 00:00:01]} 7. Be2 {[%clk 00:15:24]}
{[%emt 00:00:04]} b6 {[%clk 00:15:06]} {[%emt 00:00:16]} 8. O-O {[%clk
00:15:25]} {[%emt 00:00:04]} Bb7 {[%clk 00:15:06]} {[%emt 00:00:05]} 9. d4
{[%clk 00:14:06]} {[%emt 00:01:23]} Nbd7 {[%clk 00:14:48]} {[%emt 00:00:24]} 10.
Rc1 {[%clk 00:13:51]} {[%emt 00:00:19]} a6 {[%clk 00:14:44]} {[%emt 00:00:09]}
11. Qd3 {[%emt 00:02:18]} dxc4 {[%clk 00:13:55]} 12. bxc4 {[%clk 00:12:32]}
{[%emt 00:00:04]} e5 {[%clk 00:13:52]} {[%emt 00:00:09]} 13. Qc2 {[%clk
00:11:23]} {[%emt 00:01:14]} Qe7 {[%clk 00:12:05]} {[%emt 00:01:52]} 14. Rfd1
{[%clk 00:10:46]} {[%emt 00:00:41]} Rad8 {[%clk 00:11:42]} {[%emt 00:00:28]} 15.
d5 {[%clk 00:10:29]} {[%emt 00:00:22]} e4 {[%clk 00:11:16]} {[%emt 00:00:31]}
16. Nd4 {[%clk 00:10:23]} {[%emt 00:00:11]} Qe5 {[%clk 00:11:18]} {[%emt
00:00:02]} 17. g3 {[%clk 00:10:17]} {[%emt 00:00:12]} Qg5 {[%clk 00:10:32]}
{[%emt 00:00:51]} 18. Bf1 {[%clk 00:09:34]} {[%emt 00:00:48]} h5 {[%clk
00:10:23]} {[%emt 00:00:14]} 19. Nce2 {[%clk 00:08:41]} {[%emt 00:00:58]} h4
{[%clk 00:10:04]} {[%emt 00:00:25]} 20. Nf4 {[%clk 00:08:28]} {[%emt 00:00:17]}
Ne5 {[%clk 00:09:28]} {[%emt 00:00:41]} 21. Bg2 {[%clk 00:08:17]} {[%emt
00:00:16]} Qh6 {[%clk 00:08:37]} {[%emt 00:00:56]} 22. Nf5 {[%clk 00:08:09]}
{[%emt 00:00:12]} Qg5 {[%clk 00:08:34]} {[%emt 00:00:09]} 23. Nxh4 {[%clk
00:07:59]} {[%emt 00:00:15]} Bc8 {[%clk 00:08:23]} {[%emt 00:00:16]} 24. Bxe4
{[%clk 00:07:08]} {[%emt 00:00:56]} Nxe4 {[%clk 00:07:41]} {[%emt 00:00:48]} 25.
Qxe4 {[%clk 00:07:11]} {[%emt 00:00:02]} Bg4 {[%clk 00:07:45]} 26. f3 {[%clk
00:05:50]} {[%emt 00:01:25]} Nxf3+ {[%clk 00:05:18]} {[%emt 00:02:32]} 27. Nxf3
{[%clk 00:05:53]} {[%emt 00:00:02]} Qh6 {[%clk 00:05:23]} 28. Ne5 {[%clk
00:03:00]} {[%emt 00:02:58]} Bxe5 {[%clk 00:05:22]} {[%emt 00:00:06]} 29. Bxe5
{[%clk 00:03:01]} {[%emt 00:00:04]} Bxd1 {[%clk 00:05:26]} 30. Rxd1 {[%clk
00:03:04]} {[%emt 00:00:02]} f6 {[%clk 00:03:57]} {[%emt 00:01:34]} 31. Qf3
{[%clk 00:01:58]} {[%emt 00:01:11]} Rxe5 {[%clk 00:03:52]} {[%emt 00:00:10]} 32.
Re1 {[%clk 00:01:52]} {[%emt 00:00:11]} Rde8 {[%clk 00:03:28]} {[%emt
00:00:29]} 33. Ne6 {[%clk 00:01:54]} {[%emt 00:00:04]} c6 {[%clk 00:03:23]}
{[%emt 00:00:10]} 34. e4 {[%clk 00:01:15]} {[%emt 00:00:43]} f5 {[%clk
00:02:27]} {[%emt 00:01:01]} 35. Rf1 {[%clk 00:00:54]} {[%emt 00:00:26]} Rxe4
{[%clk 00:00:51]} {[%emt 00:01:42]} 36. Qxf5 {[%clk 00:00:48]} {[%emt
00:00:10]} R4xe6 {[%emt 00:00:51]} 37. Qf7+ {[%clk 00:00:18]} Kh7 {[%clk
00:00:41]} {[%emt 00:00:04]} 38. dxe6 {[%clk 00:00:21]} {[%emt 00:00:02]} Rxe6
{[%clk 00:00:41]} {[%emt 00:00:06]} 39. Qf5+ {[%clk 00:00:16]} {[%emt
00:00:09]} Qg6 {[%clk 00:00:45]} 40. Qf4 {[%clk 00:00:17]} {[%emt 00:00:04]}
Qe4 {[%clk 00:00:43]} {[%emt 00:00:07]} 41. Qf7 {[%clk 00:00:15]} {[%emt
00:00:07]} Qd4+ {[%clk 00:00:25]} {[%emt 00:00:23]} 42. Kh1 {[%clk 00:00:12]}
{[%emt 00:00:09]} Qe4+ {[%clk 00:00:26]} {[%emt 00:00:04]} 43. Kg1 {[%clk
00:00:15]} {[%emt 00:00:02]} Rh6 {[%clk 00:00:23]} {[%emt 00:00:07]} 44. Rf2
{[%clk 00:00:10]} {[%emt 00:00:09]} a5 {[%clk 00:00:17]} {[%emt 00:00:12]} 45.
Qf8 {[%clk 00:00:07]} {[%emt 00:00:09]} a4 {[%clk 00:00:14]} {[%emt 00:00:07]}
46. Qf7 {[%clk 00:00:07]} {[%emt 00:00:05]} b5 {[%clk 00:00:12]} {[%emt
00:00:07]} 47. cxb5 {[%clk 00:00:11]} {[%emt 00:00:02]} cxb5 {[%clk 00:00:16]}
48. Qd7 {[%clk 00:00:09]} {[%emt 00:00:07]} Rh5 {[%clk 00:00:14]} {[%emt
00:00:06]} 49. Qd1 {[%clk 00:00:10]} {[%emt 00:00:05]} Rd5 {[%clk 00:00:17]}
{[%emt 00:00:02]} 50. Qc1 {[%clk 00:00:08]} {[%emt 00:00:07]} b4 {[%clk
00:00:18]} {[%emt 00:00:05]} 51. Rf4 {[%clk 00:00:11]} {[%emt 00:00:02]} Qe2
{[%clk 00:00:09]} {[%emt 00:00:11]} 52. Rh4+ {[%clk 00:00:06]} {[%emt
00:00:12]} Kg6 {[%clk 00:00:07]} {[%emt 00:00:07]} 53. Qb1+ {[%clk 00:00:10]}
{[%emt 00:00:02]} Kg5 {[%clk 00:00:08]} {[%emt 00:00:04]} 54. Qc1+ {[%clk
00:00:08]} {[%emt 00:00:07]} Rd2 {[%clk 00:00:12]} 55. Qc5+ {[%clk 00:00:10]}
{[%emt 00:00:03]} Kg6 {[%clk 00:00:15]} {[%emt 00:00:02]} 56. Qc6+ {[%clk
00:00:12]} {[%emt 00:00:04]} Kg5 {[%clk 00:00:16]} {[%emt 00:00:04]} 57. Qc5+
{[%clk 00:00:07]} {[%emt 00:00:10]} 0-1

[Event "Open NK Rapid 2025"]
[Site "Helmond, Netherlands"]
[Date "2025.05.03"]
[Round "4.7"]
[White "Apon, Iwahn"]
[Black "Roebers, Eline"]
[Result "0-1"]
[TimeControl "15+5"]
[WhiteFideId "1056115"]
[BlackFideId "1058401"]
[WhiteElo "1987"]
[BlackElo "2390"]

1. Nf3 {[%clk 00:15:08]} f5 {[%clk 00:15:09]} {[%emt 00:00:02]} 2. c4 {[%clk
00:15:06]} {[%emt 00:00:06]} Nf6 {[%clk 00:15:13]} {[%emt 00:00:02]} 3. d3
{[%clk 00:14:54]} {[%emt 00:00:16]} g6 {[%clk 00:15:15]} {[%emt 00:00:04]} 4.
Nc3 {[%clk 00:14:55]} {[%emt 00:00:03]} Bg7 {[%clk 00:15:18]} {[%emt 00:00:02]}
5. g3 {[%clk 00:14:56]} {[%emt 00:00:03]} O-O {[%clk 00:15:21]} {[%emt
00:00:03]} 6. Bg2 {[%clk 00:14:58]} {[%emt 00:00:02]} d6 {[%clk 00:15:25]}
{[%emt 00:00:03]} 7. O-O {[%clk 00:14:51]} {[%emt 00:00:10]} e5 {[%clk
00:15:28]} {[%emt 00:00:03]} 8. Rb1 {[%clk 00:13:11]} {[%emt 00:01:45]} h6
{[%clk 00:15:24]} {[%emt 00:00:09]} 9. Qc2 {[%clk 00:12:05]} {[%emt 00:01:10]}
Nc6 {[%clk 00:15:22]} {[%emt 00:00:07]} 10. b4 {[%clk 00:11:36]} {[%emt
00:00:34]} g5 {[%clk 00:15:24]} {[%emt 00:00:04]} 11. e3 {[%clk 00:10:09]}
{[%emt 00:01:31]} f4 {[%clk 00:15:11]} {[%emt 00:00:19]} 12. b5 {[%clk
00:09:56]} {[%emt 00:00:18]} Ne7 {[%clk 00:15:14]} {[%emt 00:00:02]} 13. Nd2
{[%clk 00:06:25]} {[%emt 00:03:36]} Qe8 {[%clk 00:14:55]} {[%emt 00:00:24]} 14.
d4 {[%clk 00:06:10]} {[%emt 00:00:21]} exd4 {[%clk 00:13:15]} {[%emt 00:01:45]}
15. exd4 {[%clk 00:06:05]} {[%emt 00:00:09]} Qh5 {[%clk 00:12:44]} {[%emt
00:00:35]} 16. Nde4 {[%clk 00:04:17]} {[%emt 00:01:54]} Nf5 {[%clk 00:09:48]}
{[%emt 00:03:01]} 17. Qd1 {[%clk 00:03:49]} {[%emt 00:00:33]} Qxd1 {[%clk
00:07:48]} {[%emt 00:02:05]} 18. Rxd1 {[%clk 00:03:51]} {[%emt 00:00:03]} Nxe4
{[%clk 00:07:52]} {[%emt 00:00:02]} 19. Bxe4 {[%clk 00:03:38]} {[%emt
00:00:18]} Nxd4 {[%clk 00:07:54]} {[%emt 00:00:02]} 20. Bb2 {[%clk 00:03:05]}
{[%emt 00:00:39]} Bg4 {[%clk 00:07:13]} {[%emt 00:00:46]} 21. Rd3 {[%clk
00:02:34]} {[%emt 00:00:36]} fxg3 {[%clk 00:07:12]} {[%emt 00:00:06]} 22. hxg3
{[%clk 00:02:18]} {[%emt 00:00:20]} Nf3+ {[%clk 00:07:15]} {[%emt 00:00:03]} 23.
Kg2 {[%clk 00:02:11]} {[%emt 00:00:12]} Ne5 {[%clk 00:07:18]} 24. Re3 {[%clk
00:02:01]} {[%emt 00:00:15]} c6 {[%clk 00:07:00]} {[%emt 00:00:24]} 25. bxc6
{[%clk 00:02:02]} {[%emt 00:00:04]} bxc6 {[%clk 00:07:04]} {[%emt 00:00:01]} 26.
Na4 {[%clk 00:01:25]} {[%emt 00:00:41]} Nxc4 {[%clk 00:06:50]} {[%emt
00:00:18]} 27. Rd3 {[%clk 00:01:28]} {[%emt 00:00:03]} Nxb2 {[%clk 00:06:44]}
{[%emt 00:00:12]} 28. Nxb2 {[%clk 00:01:31]} {[%emt 00:00:02]} d5 {[%clk
00:06:47]} {[%emt 00:00:02]} 29. Bf3 {[%clk 00:01:33]} {[%emt 00:00:03]} Bxf3+
{[%clk 00:06:50]} 30. Rxf3 {[%clk 00:01:35]} {[%emt 00:00:03]} Rxf3 {[%clk
00:06:54]} 31. Kxf3 {[%clk 00:01:40]} {[%emt 00:00:01]} Rb8 {[%clk 00:06:58]}
{[%emt 00:00:01]} 32. Rc1 {[%clk 00:01:40]} {[%emt 00:00:05]} Rxb2 {[%clk
00:07:01]} {[%emt 00:00:02]} 33. Rxc6 {[%clk 00:01:44]} {[%emt 00:00:01]} Rxa2
{[%clk 00:07:05]} {[%emt 00:00:01]} 34. Rc7 {[%clk 00:01:46]} {[%emt 00:00:03]}
a5 {[%clk 00:07:07]} {[%emt 00:00:02]} 35. Ra7 {[%clk 00:01:45]} {[%emt
00:00:06]} a4 {[%clk 00:07:11]} {[%emt 00:00:01]} 36. Kg4 {[%clk 00:01:49]}
{[%emt 00:00:01]} a3 {[%clk 00:07:11]} {[%emt 00:00:06]} 37. f4 {[%clk
00:01:51]} {[%emt 00:00:03]} gxf4 {[%clk 00:07:13]} {[%emt 00:00:02]} 38. Kf5
{[%clk 00:01:55]} {[%emt 00:00:01]} fxg3 {[%clk 00:07:05]} {[%emt 00:00:13]}
0-1

[Event "Open NK Rapid 2025"]
[Site "Helmond, Netherlands"]
[Date "2025.05.03"]
[Round "4.8"]
[White "Cernov, Vadim"]
[Black "Chua, Ethan"]
[Result "1/2-1/2"]
[TimeControl "15+5"]
[WhiteFideId "1210629"]
[BlackFideId "1089250"]
[WhiteElo "2320"]
[BlackElo "2069"]

1. e4 {[%clk 00:15:08]} c5 {[%clk 00:15:09]} {[%emt 00:00:02]} 2. Nf3 {[%clk
00:15:10]} {[%emt 00:00:03]} Nc6 {[%clk 00:15:13]} {[%emt 00:00:01]} 3. Bb5
{[%clk 00:15:14]} e5 {[%clk 00:14:58]} {[%emt 00:00:20]} 4. Bxc6 {[%clk
00:14:58]} {[%emt 00:00:22]} dxc6 {[%clk 00:14:58]} {[%emt 00:00:05]} 5. O-O
{[%clk 00:15:00]} {[%emt 00:00:02]} Bd6 {[%clk 00:15:01]} {[%emt 00:00:02]} 6.
d3 {[%clk 00:14:56]} {[%emt 00:00:10]} Ne7 {[%clk 00:15:04]} {[%emt 00:00:02]}
7. Nbd2 {[%clk 00:14:58]} {[%emt 00:00:03]} Ng6 {[%clk 00:15:02]} {[%emt
00:00:06]} 8. Nc4 {[%clk 00:14:54]} {[%emt 00:00:09]} Bc7 {[%clk 00:15:04]}
{[%emt 00:00:04]} 9. Be3 {[%clk 00:14:50]} {[%emt 00:00:08]} Qe7 {[%clk
00:14:59]} {[%emt 00:00:10]} 10. a4 {[%clk 00:14:37]} {[%emt 00:00:18]} a5
{[%clk 00:15:00]} {[%emt 00:00:04]} 11. c3 {[%clk 00:14:11]} {[%emt 00:00:31]}
O-O {[%clk 00:15:00]} {[%emt 00:00:05]} 12. Qb3 {[%clk 00:13:58]} {[%emt
00:00:19]} b6 {[%clk 00:14:39]} {[%emt 00:00:25]} 13. Qa3 {[%clk 00:12:24]}
{[%emt 00:01:39]} f6 {[%clk 00:14:14]} {[%emt 00:00:30]} 14. d4 {[%clk
00:12:11]} {[%emt 00:00:18]} cxd4 {[%clk 00:14:13]} {[%emt 00:00:06]} 15. Qxe7
{[%clk 00:11:48]} {[%emt 00:00:28]} Nxe7 {[%clk 00:14:16]} {[%emt 00:00:02]} 16.
cxd4 {[%clk 00:11:52]} Be6 {[%clk 00:13:29]} {[%emt 00:00:51]} 17. Rfc1 {[%clk
00:11:46]} {[%emt 00:00:12]} exd4 {[%clk 00:12:48]} {[%emt 00:00:46]} 18. Nxd4
{[%clk 00:11:47]} {[%emt 00:00:04]} Bf7 {[%clk 00:12:33]} {[%emt 00:00:20]} 19.
g3 {[%clk 00:10:57]} {[%emt 00:00:54]} Rac8 {[%clk 00:12:01]} {[%emt 00:00:38]}
20. Bf4 {[%clk 00:10:39]} {[%emt 00:00:23]} Bxf4 {[%clk 00:11:28]} {[%emt
00:00:38]} 21. gxf4 {[%clk 00:10:43]} {[%emt 00:00:02]} Rfd8 {[%clk 00:10:47]}
{[%emt 00:00:46]} 22. Nxb6 {[%clk 00:08:01]} {[%emt 00:02:46]} Rc7 {[%clk
00:03:43]} {[%emt 00:07:09]} 23. Nf3 {[%clk 00:05:09]} {[%emt 00:02:57]} Rb7
{[%clk 00:03:15]} {[%emt 00:00:32]} 24. Nc4 {[%clk 00:05:06]} {[%emt 00:00:09]}
Bxc4 {[%clk 00:03:10]} {[%emt 00:00:11]} 25. Rxc4 {[%clk 00:05:09]} Rxb2 {[%clk
00:03:12]} {[%emt 00:00:03]} 26. f5 {[%clk 00:04:35]} {[%emt 00:00:39]} Rd3
{[%clk 00:02:30]} {[%emt 00:00:47]} 27. Kg2 {[%clk 00:04:29]} {[%emt 00:00:11]}
g6 {[%clk 00:02:14]} {[%emt 00:00:21]} 28. fxg6 {[%clk 00:04:05]} {[%emt
00:00:30]} hxg6 {[%clk 00:01:56]} {[%emt 00:00:23]} 29. Rac1 {[%clk 00:03:39]}
{[%emt 00:00:31]} Ra3 {[%clk 00:01:53]} {[%emt 00:00:08]} 30. e5 {[%clk
00:02:30]} {[%emt 00:01:14]} fxe5 {[%clk 00:01:37]} {[%emt 00:00:20]} 31. Nxe5
{[%clk 00:02:29]} {[%emt 00:00:06]} Raa2 {[%clk 00:01:41]} {[%emt 00:00:02]} 32.
Rf4 {[%clk 00:02:27]} {[%emt 00:00:06]} Rb4 {[%clk 00:01:26]} {[%emt 00:00:20]}
33. Rxb4 {[%clk 00:02:19]} {[%emt 00:00:13]} axb4 {[%clk 00:01:30]} {[%emt
00:00:02]} 34. Nxc6 {[%clk 00:02:21]} {[%emt 00:00:02]} Nxc6 {[%clk 00:01:30]}
{[%emt 00:00:05]} 35. Rxc6 {[%clk 00:02:25]} {[%emt 00:00:01]} Rxa4 {[%clk
00:01:30]} {[%emt 00:00:05]} 36. Rxg6+ {[%clk 00:02:28]} {[%emt 00:00:02]} Kf7
{[%clk 00:01:31]} {[%emt 00:00:04]} 37. Rb6 {[%clk 00:02:32]} {[%emt 00:00:01]}
Ke7 {[%clk 00:01:31]} {[%emt 00:00:05]} 38. Kg3 {[%clk 00:02:08]} {[%emt
00:00:29]} Kd7 {[%clk 00:01:35]} {[%emt 00:00:02]} 39. h4 {[%clk 00:01:56]}
{[%emt 00:00:17]} Kc7 {[%clk 00:01:39]} 40. Rb5 {[%clk 00:01:57]} {[%emt
00:00:03]} Kc6 {[%clk 00:01:43]} {[%emt 00:00:02]} 41. Rb8 {[%clk 00:02:00]}
{[%emt 00:00:01]} Kc7 {[%clk 00:01:47]} 42. Rb5 {[%clk 00:01:35]} {[%emt
00:00:21]} 1/2-1/2